bitfinex-derivatives/quotes_BTCF0:USTF0_20250915
["timestamp","ask_amount","ask_price","bid_price","bid_amount"]
[1757961014565,1.22575358,115010.0,115000.0,0.45486773]
[1757961014765,0.05779585,115010.0,115000.0,0.45486773]
[1757961014966,0.85139585,115010.0,115000.0,0.45486773]
[1757961015669,0.05779585,115010.0,115000.0,0.45486773]
[1757961016370,0.05779585,115010.0,115000.0,0.08051]
[1757961016760,0.05779585,115010.0,115000.0,0.45486773]
[1757961017269,0.05779585,115010.0,115000.0,0.37435773]
[1757961019875,0.05779585,115010.0,115000.0,0.45487773]
[1757961021666,0.05779585,115010.0,115000.0,0.81567773]
[1757961022568,0.43215358,115010.0,115000.0,0.44132]
[1757961022772,0.43215358,115010.0,115000.0,0.45487773]
[1757961025076,0.05779585,115010.0,115000.0,0.45487773]
[1757961025274,0.43215358,115010.0,115000.0,0.45487773]
[1757961025774,0.05779585,115010.0,115000.0,0.45487773]
[1757961025975,1.22707358,115010.0,115000.0,0.45487773]
[1757961029176,0.85271585,115010.0,115000.0,0.45487773]
[1757961029370,1.22707358,115010.0,115000.0,0.45487773]
[1757961029969,1.22707358,115010.0,115000.0,0.08052]
[1757961030175,1.83787358,115010.0,115000.0,0.08052]
[1757961030777,1.88473085,115010.0,115000.0,0.08052]
[1757961031379,1.83887358,115010.0,115000.0,0.08052]
[1757961031967,1.88573085,115010.0,115000.0,0.08052]
[1757961032377,1.88673085,115010.0,115000.0,0.08052]
[1757961032577,1.88673085,115010.0,115000.0,0.04552]
[1757961032880,0.03586,114980.0,114970.0,0.75107773]
[1757961033080,1.22706358,114980.0,114970.0,0.75107773]
[1757961033472,1.22702358,114980.0,114970.0,0.75107773]
[1757961033981,1.22698358,114980.0,114970.0,0.75107773]
[1757961034174,1.2357372,114980.0,114970.0,0.75107773]
[1757961034374,1.2357372,114980.0,114970.0,0.75507773]
[1757961034574,0.93214619,114980.0,114970.0,0.75507773]
[1757961034775,1.30650392,114980.0,114970.0,0.75507773]
[1757961034979,1.30650392,114980.0,114970.0,0.75307773]
[1757961036078,1.30650392,114980.0,114970.0,0.75107773]
[1757961036978,0.93194619,114980.0,114970.0,0.75107773]
[1757961037179,0.51170392,114980.0,114970.0,0.75107773]
[1757961037380,1.30618392,114980.0,114970.0,0.75107773]
[1757961037679,0.93182619,114980.0,114970.0,0.37672]
[1757961037881,0.93182619,114980.0,114970.0,0.75107773]
[1757961038176,0.12859257,114980.0,114970.0,0.75107773]
[1757961038577,0.92387257,114980.0,114970.0,0.75107773]
[1757961038884,0.12859257,114980.0,114970.0,0.75107773]
[1757961039084,0.10662672,114980.0,114970.0,0.75107773]
[1757961039284,0.90182672,114980.0,114970.0,0.75107773]
[1757961040985,0.10662672,114980.0,114970.0,0.75107773]
[1757961041279,0.90170672,114980.0,114970.0,0.75107773]
[1757961041986,0.10662672,114980.0,114970.0,0.75107773]
[1757961042284,0.90170672,114980.0,114970.0,0.75107773]
[1757961042484,1.27606445,114980.0,114970.0,0.37672]
[1757961042786,1.27606445,114980.0,114970.0,0.75107773]
[1757961043185,0.03586,114970.0,114960.0,0.77136959]
[1757961043381,0.41021773,114970.0,114960.0,0.77136959]
[1757961044086,0.03586,114970.0,114960.0,0.77136959]
[1757961044285,0.0129,114970.0,114960.0,1.14572732]
[1757961044975,0.0129,114970.0,114960.0,1.14672732]
[1757961045378,0.0129,114970.0,114960.0,1.14772732]
[1757961045780,0.08366672,114980.0,114960.0,1.14772732]
[1757961045987,0.08366672,114980.0,114970.0,0.75107773]
[1757961045988,0.80878,114980.0,114970.0,0.75107773]
[1757961046187,0.0577349,114980.0,114970.0,0.75107773]
[1757961047384,0.0218749,114980.0,114970.0,1.66715773]
[1757961047687,1.09308,115000.0,114970.0,2.16411683]
[1757961047886,1.51217176,115000.0,114990.0,0.39027773]
[1757961048083,1.58068695,115000.0,114990.0,0.39027773]
[1757961048989,1.58168695,115000.0,114990.0,0.39027773]
[1757961049379,1.58068695,115000.0,114990.0,0.39027773]
[1757961049578,1.58368695,115000.0,114990.0,0.39027773]
[1757961049787,1.58568695,115000.0,114990.0,0.39027773]
[1757961050284,1.5943326,115000.0,114990.0,0.39027773]
[1757961051991,1.5943326,115000.0,114990.0,0.01592]
[1757961052189,1.5944326,115000.0,114990.0,0.39027773]
[1757961053292,1.22007487,115000.0,114990.0,0.39027773]
[1757961053494,1.5944326,115000.0,114990.0,0.39027773]
[1757961056292,1.8444326,115000.0,114980.0,0.3609]
[1757961056588,0.41094773,114990.0,114980.0,0.37682]
[1757961056792,0.43282176,114990.0,114980.0,0.01592]
[1757961057294,0.43282176,114990.0,114980.0,0.39027773]
[1757961058696,0.43482176,114990.0,114980.0,0.39027773]
[1757961058896,0.43582176,114990.0,114980.0,0.39027773]
[1757961059196,0.06146403,114990.0,114980.0,0.39027773]
[1757961059397,0.43582176,114990.0,114980.0,0.39027773]
[1757961060493,0.06146403,114990.0,114980.0,0.75107773]
[1757961060802,0.02487403,114990.0,114980.0,2.45078546]
[1757961061297,0.003,114990.0,114980.0,2.45078546]
[1757961062095,0.003,114990.0,114980.0,2.4706927]
[1757961063299,0.003,114990.0,114980.0,2.5576442]
[1757961063500,0.0001,115000.0,114980.0,2.5576442]
[1757961063702,0.0001,115000.0,114990.0,1.12543546]
[1757961063895,0.0001,115000.0,114990.0,1.42543546]
[1757961065198,0.0011,115000.0,114990.0,1.42543546]
[1757961065802,0.0011,115000.0,114990.0,1.00937905]
[1757961066799,0.0011,115000.0,114990.0,1.27577905]
[1757961071304,0.013,115020.0,114990.0,1.9453821]
[1757961071598,0.0001,115030.0,115020.0,0.02587]
[1757961071803,0.03659,115030.0,115020.0,0.70937905]
[1757961073613,0.03859,115030.0,115020.0,0.70937905]
[1757961074510,0.04059,115030.0,115020.0,0.70937905]
[1757961074811,0.04059,115030.0,115020.0,1.50617905]
[1757961075204,0.04059,115030.0,115020.0,1.60617905]
[1757961075407,0.01757,115030.0,115020.0,1.60617905]
[1757961075601,0.01757,115030.0,115020.0,1.50617905]
[1757961077712,0.004,115030.0,115020.0,1.50617905]
[1757961078313,0.004,115030.0,115020.0,2.44950035]
[1757961078712,0.004,115030.0,115020.0,1.65270035]
[1757961078911,0.004,115030.0,115020.0,2.45814688]
[1757961079114,0.004,115030.0,115020.0,1.65270035]
[1757961079415,0.004,115030.0,115020.0,2.44926035]
[1757961080011,0.004,115030.0,115020.0,1.56577905]
[1757961080212,0.004,115030.0,115020.0,2.36225905]
[1757961080414,0.004,115030.0,115020.0,1.56577905]
[1757961080607,0.01757,115030.0,115020.0,1.31577905]
[1757961080805,0.01757,115030.0,115020.0,2.11233905]
[1757961081607,0.01757,115030.0,115020.0,1.31577905]
[1757961081811,0.01757,115030.0,115020.0,2.11249905]
[1757961082512,0.004,115030.0,115020.0,2.11249905]
[1757961083213,0.004,115030.0,115020.0,1.31577905]
[1757961083513,0.004,115030.0,115020.0,2.11229905]
[1757961083719,0.004,115030.0,115020.0,2.11225905]
[1757961086716,0.02573904,115030.0,115020.0,2.11225905]
[1757961088519,0.02573904,115030.0,115020.0,2.19918035]
[1757961088725,0.02573904,115030.0,115020.0,2.11225905]
[1757961089720,0.02573904,115030.0,115020.0,1.7796]
[1757961089928,0.02573904,115030.0,115020.0,2.11225905]
[1757961090122,0.02573904,115030.0,115020.0,1.77225905]
[1757961090319,0.06045904,115030.0,115020.0,0.64312]
[1757961090521,0.31045904,115030.0,115020.0,0.68672]
[1757961090721,0.31045904,115030.0,115020.0,1.81609905]
[1757961097633,0.31045904,115030.0,115020.0,1.48344]
[1757961097829,0.31045904,115030.0,115020.0,1.81609905]
[1757961098526,0.31045904,115030.0,115020.0,1.52609905]
[1757961099429,0.06045904,115030.0,115020.0,1.52609905]
[1757961100232,0.06045904,115030.0,115020.0,1.50609905]
[1757961101934,0.06045904,115030.0,115020.0,0.70937905]
[1757961102232,0.06045904,115030.0,115020.0,1.50565905]
[1757961104930,0.02573904,115030.0,115020.0,1.50565905]
[1757961105131,0.03865904,115030.0,115020.0,1.50565905]
[1757961105935,0.06045904,115030.0,115020.0,1.50521905]
[1757961109340,0.03865904,115030.0,115020.0,1.50521905]
[1757961109941,0.02573904,115030.0,115020.0,1.61521905]
[1757961110140,0.02573904,115030.0,115020.0,0.81937905]
[1757961110340,0.06045904,115030.0,115020.0,1.50489905]
[1757961110635,0.06054134,115030.0,115020.0,1.50489905]
[1757961112242,0.06054134,115030.0,115020.0,0.70937905]
[1757961112434,0.06054134,115030.0,115020.0,1.50465905]
[1757961112838,0.03874134,115030.0,115020.0,1.50465905]
[1757961115336,0.03874134,115030.0,115020.0,0.70937905]
[1757961115544,0.03874134,115030.0,115020.0,1.50441905]
[1757961118447,0.03874134,115030.0,115020.0,1.17176]
[1757961118641,0.03874134,115030.0,115020.0,1.50441905]
[1757961120547,0.03874134,115030.0,115020.0,1.55441905]
[1757961121152,0.03875326,115030.0,115020.0,1.55441905]
[1757961122141,0.02583326,115030.0,115020.0,2.15134035]
[1757961122648,0.02583326,115030.0,115020.0,2.17062035]
[1757961122950,0.02583326,115030.0,115020.0,2.08369905]
[1757961123848,0.02583326,115030.0,115020.0,2.17062035]
[1757961125748,0.02583326,115030.0,115020.0,2.65404302]
[1757961125947,0.02583326,115030.0,115020.0,1.39414856]
[1757961126145,0.03908326,115030.0,115020.0,1.45414856]
[1757961126347,0.06091326,115030.0,115020.0,1.24056]
[1757961126546,0.06091326,115030.0,115020.0,1.98870856]
[1757961127546,0.02583326,115030.0,115020.0,1.98870856]
[1757961128149,0.02559622,115030.0,115020.0,1.98870856]
[1757961131750,0.02559622,115030.0,115020.0,2.24870856]
[1757961133653,0.06067622,115030.0,115020.0,1.23028]
[1757961133852,0.02559622,115030.0,115020.0,1.97842856]
[1757961134451,0.02559622,115030.0,115020.0,1.93842856]
[1757961135153,0.02559622,115030.0,115020.0,2.26842856]
[1757961135655,0.02559622,115030.0,115020.0,1.47414856]
[1757961135854,0.02559622,115030.0,115020.0,2.26842856]
[1757961137452,0.02559622,115030.0,115020.0,2.26870856]
[1757961139154,0.02559622,115030.0,115020.0,2.35562966]
[1757961142459,0.02559622,115030.0,115020.0,1.47414856]
[1757961142856,0.02559622,115030.0,115020.0,2.58745146]
[1757961143062,0.02559622,115030.0,115020.0,2.96148574]
[1757961143251,0.02559622,115030.0,115020.0,2.58741146]
[1757961143450,0.02559622,115030.0,115020.0,1.79329146]
[1757961143661,0.02559622,115030.0,115020.0,2.58753146]
[1757961143854,0.02559622,115030.0,115020.0,2.85393146]
[1757961144858,0.02559622,115030.0,115020.0,1.80969146]
[1757961145056,0.03884622,115030.0,115020.0,2.60393146]
[1757961145561,0.03884622,115030.0,115020.0,1.74054856]
[1757961145766,0.03884622,115030.0,115020.0,2.53506856]
[1757961149862,0.02559622,115030.0,115020.0,2.26866856]
[1757961151874,0.02559622,115030.0,115020.0,2.42605354]
[1757961152172,0.02559622,115030.0,115020.0,2.33913244]
[1757961152872,0.004,115030.0,115020.0,2.58913244]
[1757961153072,0.004,115030.0,115020.0,2.67605354]
[1757961153274,0.004,115030.0,115020.0,2.58913244]
[1757961154872,0.004,115030.0,115020.0,2.67605354]
[1757961155371,0.004,115030.0,115020.0,3.05012782]
[1757961155777,0.004,115030.0,115020.0,3.31652782]
[1757961156679,0.004,115030.0,115020.0,3.37892156]
[1757961159281,0.004,115030.0,115020.0,3.12892156]
[1757961161481,0.004,115030.0,115020.0,2.24748046]
[1757961161676,0.004,115030.0,115020.0,1.81101244]
[1757961161882,0.01755,115030.0,115020.0,1.54461244]
[1757961162083,0.01755,115030.0,115020.0,2.33957244]
[1757961162581,0.004,115030.0,115020.0,2.26910856]
[1757961162982,0.004,115030.0,115020.0,1.47414856]
[1757961163182,0.004,115030.0,115020.0,2.26918856]
[1757961166186,0.004,115030.0,115020.0,2.34015997]
[1757961173695,0.004,115030.0,115020.0,2.60655997]
[1757961173891,0.004,115030.0,115020.0,2.75587481]
[1757961174096,0.004,115030.0,115020.0,2.66895371]
[1757961176099,0.004,115030.0,115020.0,2.60655997]
[1757961176288,0.004,115030.0,115020.0,2.69348107]
[1757961176692,0.004,115030.0,115020.0,3.06755535]
[1757961177398,0.02554605,115030.0,115020.0,3.06755535]
[1757961177796,0.004,115030.0,115020.0,3.06755535]
[1757961178200,0.0255476,115030.0,115020.0,3.06755535]
[1757961179898,0.0255476,115030.0,115020.0,2.60655997]
[1757961184602,0.0255476,115030.0,115020.0,2.69348107]
[1757961185904,0.0255476,115030.0,115020.0,2.60655997]
[1757961186105,0.004,115030.0,115020.0,2.66895371]
[1757961189497,0.004,115030.0,115020.0,2.27780501]
[1757961190009,0.004,115030.0,115020.0,2.19088391]
[1757961190402,0.004,115030.0,115020.0,2.27780501]
[1757961191804,0.004,115030.0,115020.0,2.19088391]
[1757961192008,0.004,115030.0,115020.0,1.85841141]
[1757961192204,0.004,115030.0,115020.0,2.19088391]
[1757961196014,0.004,115030.0,115020.0,2.27780501]
[1757961198215,0.004,115030.0,115020.0,2.19088391]
[1757961199216,0.004,115030.0,115020.0,2.27780501]
[1757961207421,0.004,115030.0,115020.0,2.19088391]
[1757961207621,0.004,115030.0,115020.0,2.03944391]
[1757961207817,0.01768,115030.0,115020.0,2.03944391]
[1757961208520,0.01768,115030.0,115020.0,1.24584391]
[1757961208721,0.01768,115030.0,115020.0,2.03968391]
[1757961210620,0.004,115030.0,115020.0,2.03968391]
[1757961214525,0.01768,115030.0,115020.0,0.9948725]
[1757961214723,0.28948257,115030.0,115020.0,1.79604]
[1757961215127,0.28948257,115030.0,115020.0,1.52964]
[1757961216423,0.28948257,115030.0,115020.0,1.8621125]
[1757961216928,0.28948257,115030.0,115020.0,1.8428325]
[1757961219330,0.03948257,115030.0,115020.0,1.8428325]
[1757961220127,0.01768,115030.0,115020.0,1.8428325]
[1757961220328,0.004,115030.0,115020.0,1.8428325]
[1757961221333,0.01768,115030.0,115020.0,1.8428325]
[1757961222833,0.01768,115030.0,115020.0,1.6228325]
[1757961226337,0.03946226,115030.0,115020.0,1.6228325]
[1757961228446,0.03946226,115030.0,115020.0,1.17036]
[1757961228638,0.03946226,115030.0,115020.0,1.5028325]
[1757961235645,0.03946226,115030.0,115020.0,0.7091925]
[1757961235850,0.06159226,115030.0,115020.0,1.5032725]
[1757961236149,0.03981,115030.0,115020.0,1.5032725]
[1757961239050,0.03981,115030.0,115020.0,0.7091925]
[1757961239250,0.03981,115030.0,115020.0,1.5029125]
[1757961240650,0.06160662,115030.0,115020.0,1.5029125]
[1757961241054,0.06160662,115030.0,115020.0,0.7091925]
[1757961241256,0.06160662,115030.0,115020.0,1.5029125]
[1757961244054,0.06160662,115030.0,115020.0,0.7091925]
[1757961244257,0.06160662,115030.0,115020.0,1.5026725]
[1757961244757,0.06160662,115030.0,115020.0,1.8226725]
[1757961247757,0.06160662,115030.0,115020.0,2.2384829]
[1757961252863,0.06160662,115030.0,115020.0,1.9384829]
[1757961256265,0.06160662,115030.0,115020.0,1.9184829]
[1757961256673,0.06160662,115030.0,115020.0,1.1250029]
[1757961256964,0.06160662,115030.0,115020.0,1.9184829]
[1757961257765,0.68574807,115030.0,115020.0,1.54434145]
[1757961258263,0.68574807,115030.0,115020.0,0.75086145]
[1757961258458,0.68574807,115030.0,115020.0,1.54430145]
[1757961260365,0.68574807,115030.0,115020.0,0.37672]
[1757961260566,0.68574807,115030.0,115020.0,0.3608]
[1757961260762,0.68574807,115030.0,115010.0,0.3609]
[1757961261067,0.40951145,115020.0,115010.0,1.22360145]
[1757961261264,0.43130807,115020.0,115010.0,1.22350145]
[1757961262263,0.50028406,115020.0,115010.0,1.22350145]
[1757961262569,0.50888084,115020.0,115010.0,0.43006145]
[1757961262867,0.43990485,115020.0,115010.0,0.43006145]
[1757961264668,0.44090485,115020.0,115010.0,0.05592]
[1757961265069,0.44090485,115020.0,115010.0,0.43006145]
[1757961266769,0.44090485,115020.0,115010.0,0.05592]
[1757961266960,0.44090485,115020.0,115010.0,0.43006145]
[1757961267163,0.50961661,115020.0,115010.0,0.43006145]
[1757961269078,0.50961661,115020.0,115010.0,0.39006145]
[1757961271276,0.13547516,115020.0,115010.0,0.39006145]
[1757961272278,0.13547516,115020.0,115010.0,0.01592]
[1757961272577,0.13547516,115020.0,115010.0,0.39006145]
[1757961279884,0.13547516,115020.0,115010.0,0.01592]
[1757961280087,0.13547516,115020.0,115010.0,0.39006145]
[1757961281284,0.50961661,115020.0,115010.0,0.39006145]
[1757961283989,0.13547516,115020.0,115010.0,0.39006145]
[1757961289681,0.13547516,115020.0,115010.0,0.01592]
[1757961289983,0.13547516,115020.0,115010.0,0.39006145]
[1757961290682,0.03462,115010.0,115000.0,0.75096145]
[1757961290881,0.43055807,115010.0,115000.0,0.75086145]
[1757961291182,0.43055807,115010.0,115000.0,0.39006145]
[1757961292489,0.43055807,115010.0,115000.0,0.39106145]
[1757961292787,0.05641662,115010.0,115000.0,0.39106145]
[1757961292989,0.43055807,115010.0,115000.0,0.39106145]
[1757961293889,0.05641662,115010.0,115000.0,0.39106145]
[1757961298192,0.43055807,115010.0,115000.0,0.39106145]
[1757961298494,0.05641662,115010.0,115000.0,0.39106145]
[1757961301396,0.05641662,115010.0,115000.0,0.01692]
[1757961301596,0.05641662,115010.0,115000.0,0.39106145]
[1757961302398,0.05641662,115010.0,115000.0,1.00186145]
[1757961302598,0.02179662,115010.0,115000.0,1.12181145]
[1757961302803,0.02179662,115010.0,115000.0,1.33181145]
[1757961303090,0.11284516,115020.0,115000.0,1.33181145]
[1757961303292,0.13455516,115020.0,115010.0,0.75086145]
[1757961303494,0.13445516,115020.0,115010.0,0.75086145]
[1757961304597,0.13445516,115020.0,115010.0,1.54422145]
[1757961306098,0.13445516,115020.0,115010.0,0.75086145]
[1757961306398,0.13545516,115020.0,115010.0,1.54422145]
[1757961307805,0.13545516,115020.0,115010.0,1.50275733]
[1757961308100,0.13545516,115020.0,115010.0,0.70939733]
[1757961313396,0.12685838,115020.0,115010.0,0.70939733]
[1757961313599,0.05814662,115020.0,115010.0,0.73004125]
[1757961314497,0.05814662,115020.0,115010.0,0.78004125]
[1757961315395,0.05814662,115020.0,115010.0,1.57332125]
[1757961315594,0.02279662,115020.0,115010.0,2.10332125]
[1757961316700,0.03543662,115020.0,115010.0,1.77060392]
[1757961317101,0.03543662,115020.0,115010.0,2.10328125]
[1757961319602,0.03543662,115020.0,115010.0,1.31004125]
[1757961320302,0.05714662,115020.0,115010.0,0.70672]
[1757961320802,0.05714662,115020.0,115010.0,1.03939733]
[1757961322704,0.12715168,115020.0,115010.0,1.03939733]
[1757961323203,0.12715168,115020.0,115010.0,1.83259733]
[1757961326399,0.05714662,115020.0,115010.0,1.83259733]
[1757961328102,0.02279662,115020.0,115010.0,1.83259733]
[1757961328308,0.02279662,115020.0,115010.0,1.50259733]
[1757961330709,0.02279662,115020.0,115010.0,2.35918216]
[1757961330911,0.001,115020.0,115010.0,2.51504593]
[1757961331212,0.0001,115030.0,115020.0,0.02327]
[1757961331410,0.0001,115040.0,115020.0,1.02674733]
[1757961331605,0.0001,115040.0,115030.0,1.50091733]
[1757961331807,0.02203198,115040.0,115030.0,1.50091733]
[1757961332406,0.02203198,115040.0,115030.0,0.70779733]
[1757961332607,0.02203198,115040.0,115030.0,1.50091733]
[1757961332909,0.02303198,115040.0,115030.0,1.50091733]
[1757961333511,0.02603198,115040.0,115030.0,1.50091733]
[1757961334711,0.004,115040.0,115030.0,1.50091733]
[1757961334906,0.0256,115040.0,115030.0,0.70779733]
[1757961335213,0.03908,115040.0,115030.0,1.50087733]
[1757961336115,0.0609107,115040.0,115030.0,1.50087733]
[1757961336307,0.0609107,115040.0,115030.0,0.70779733]
[1757961336613,0.3109107,115040.0,115030.0,1.16816]
[1757961336912,0.3109107,115040.0,115030.0,1.55083733]
[1757961339314,0.0609107,115040.0,115030.0,1.55083733]
[1757961340014,0.0258307,115040.0,115030.0,1.55083733]
[1757961341017,0.0258307,115040.0,115030.0,1.57069695]
[1757961341219,0.004,115040.0,115030.0,1.57069695]
[1757961342118,0.01748,115040.0,115030.0,1.57069695]
[1757961342617,0.004,115040.0,115030.0,1.57069695]
[1757961342817,0.02582044,115040.0,115030.0,1.57069695]
[1757961343316,0.004,115040.0,115030.0,2.44337428]
[1757961343817,0.004,115040.0,115030.0,2.53028958]
[1757961344114,0.0001,115050.0,115030.0,2.53028958]
[1757961344115,0.0001,115050.0,115040.0,0.01287]
[1757961344309,0.3609,115060.0,115040.0,1.33902466]
[1757961344515,0.39619423,115060.0,115050.0,1.13351733]
[1757961344714,0.39609423,115060.0,115050.0,1.13351733]
[1757961345418,0.38261423,115060.0,115050.0,1.13351733]
[1757961345617,0.38261423,115060.0,115050.0,1.13347733]
[1757961345818,0.38261423,115060.0,115050.0,0.34059733]
[1757961346114,0.40009423,115060.0,115050.0,1.13347733]
[1757961346310,0.38661423,115060.0,115050.0,1.48368222]
[1757961347115,0.02881423,115060.0,115050.0,1.84448222]
[1757961347817,0.007,115060.0,115050.0,1.05160222]
[1757961348021,0.007,115060.0,115050.0,1.84448222]
[1757961348220,0.007,115060.0,115050.0,1.05160222]
[1757961348417,0.007,115060.0,115050.0,1.84444222]
[1757961348718,0.007,115060.0,115050.0,1.05160222]
[1757961348922,0.007,115060.0,115050.0,1.84444222]
[1757961351423,0.007,115060.0,115050.0,1.05160222]
[1757961351625,0.007,115060.0,115050.0,1.84440222]
[1757961353227,0.02879215,115060.0,115050.0,1.84440222]
[1757961355526,0.02879215,115060.0,115050.0,1.84436222]
[1757961356227,0.02879215,115060.0,115050.0,2.11076222]
[1757961356430,0.007,115060.0,115050.0,2.36076222]
[1757961356831,0.007,115060.0,115050.0,2.44766242]
[1757961357029,0.007,115060.0,115050.0,2.18126242]
[1757961357229,0.0001,115070.0,115060.0,0.0948126]
[1757961357431,0.0001,115080.0,115060.0,1.04139733]
[1757961357631,0.0001,115080.0,115070.0,1.49411733]
[1757961357927,0.0217947,115080.0,115070.0,1.65411733]
[1757961358529,0.0217947,115080.0,115070.0,1.67458353]
[1757961358834,0.0217947,115080.0,115070.0,2.00726086]
[1757961359728,0.0217947,115080.0,115070.0,1.67458353]
[1757961360036,0.0217947,115080.0,115070.0,0.88186353]
[1757961360236,0.0217947,115080.0,115070.0,1.67458353]
[1757961360423,0.0217947,115080.0,115070.0,1.67558353]
[1757961360629,0.0217947,115080.0,115070.0,0.88286353]
[1757961360834,0.0217947,115080.0,115070.0,1.67554353]
[1757961362143,0.0217947,115080.0,115070.0,2.18822086]
[1757961362638,0.0001,115090.0,115080.0,0.01287]
[1757961362839,0.01358,115100.0,115080.0,1.33902466]
[1757961363040,0.01358,115100.0,115090.0,1.49407733]
[1757961363232,0.03526376,115100.0,115090.0,1.49407733]
[1757961363737,0.05628376,115100.0,115090.0,0.70139733]
[1757961363938,0.05628376,115100.0,115090.0,1.49403733]
[1757961364138,0.05628376,115100.0,115090.0,0.70139733]
[1757961364543,0.05828376,115100.0,115090.0,0.70139733]
[1757961364741,0.05828376,115100.0,115090.0,1.49411733]
[1757961365039,0.05628376,115100.0,115090.0,1.49511733]
[1757961365239,0.06499665,115100.0,115090.0,1.49511733]
[1757961367242,0.11192692,115100.0,115090.0,1.49511733]
[1757961368444,0.11192692,115100.0,115090.0,0.70239733]
[1757961368944,0.11192692,115100.0,115090.0,1.49495733]
[1757961369845,0.11192692,115100.0,115090.0,1.53599585]
[1757961372640,0.08219403,115100.0,115090.0,1.53599585]
[1757961372843,0.06871403,115100.0,115090.0,1.53599585]
[1757961373040,0.07756825,115100.0,115090.0,1.53599585]
[1757961373743,0.09017825,115100.0,115090.0,1.53599585]
[1757961376261,0.09017825,115100.0,115090.0,0.001]
[1757961376262,1.0957141,115100.0,115090.0,0.001]
[1757961376659,0.03363,115090.0,115080.0,0.0001]
[1757961376857,0.01261,115080.0,115070.0,1.02576205]
[1757961377056,0.40810961,115080.0,115070.0,1.02566205]
[1757961377262,0.03439376,115080.0,115070.0,1.02566205]
[1757961377455,0.40810961,115080.0,115070.0,1.02566205]
[1757961377959,0.40810961,115080.0,115070.0,1.00519585]
[1757961378259,0.40810961,115080.0,115070.0,1.00819585]
[1757961378960,0.40810961,115080.0,115070.0,0.37671585]
[1757961379160,0.42912961,115080.0,115070.0,0.38463585]
[1757961380065,0.42912961,115080.0,115070.0,0.38563585]
[1757961380362,0.05541376,115080.0,115070.0,0.38563585]
[1757961380564,0.42912961,115080.0,115070.0,0.38563585]
[1757961380964,0.78992961,115080.0,115070.0,0.38563585]
[1757961381762,0.8366853,115080.0,115070.0,0.38563585]
[1757961383563,0.46296945,115080.0,115070.0,0.38563585]
[1757961383754,0.8366853,115080.0,115070.0,0.38563585]
[1757961384364,0.8366853,115080.0,115070.0,0.01192]
[1757961384564,0.8366853,115080.0,115070.0,0.004]
[1757961384759,1.0866853,115080.0,115070.0,0.004]
[1757961386666,1.0866853,115080.0,115070.0,0.01192]
[1757961386870,0.71296945,115080.0,115070.0,0.38563585]
[1757961387068,1.0866853,115080.0,115070.0,0.38563585]
[1757961387366,1.03992961,115080.0,115070.0,0.38563585]
[1757961387563,1.03992961,115080.0,115070.0,0.37771585]
[1757961387970,1.0866853,115080.0,115070.0,0.37771585]
[1757961388164,1.03992961,115080.0,115070.0,0.38563585]
[1757961389072,1.03992961,115080.0,115070.0,0.004]
[1757961390072,0.03457,115070.0,115060.0,0.0001]
[1757961390269,0.03457,115060.0,115050.0,0.38173585]
[1757961390469,0.05635376,115060.0,115050.0,0.38163585]
[1757961390670,0.43006961,115060.0,115050.0,0.38163585]
[1757961392774,0.43006961,115060.0,115050.0,0.38563585]
[1757961393077,0.05635376,115060.0,115050.0,0.38563585]
[1757961393372,0.05435376,115060.0,115050.0,0.38563585]
[1757961394266,0.05435376,115060.0,115050.0,1.3721517]
[1757961394468,0.03263376,115060.0,115050.0,1.3721517]
[1757961394968,0.08320266,115070.0,115050.0,1.3721517]
[1757961395166,0.12682139,115070.0,115060.0,0.74563585]
[1757961395370,0.12672139,115070.0,115060.0,1.53871585]
[1757961395673,0.05646873,115070.0,115060.0,1.53871585]
[1757961396576,0.05646873,115070.0,115060.0,1.79171585]
[1757961396968,0.03474918,115070.0,115060.0,1.79171585]
[1757961399276,0.03474918,115070.0,115060.0,1.54171585]
[1757961401678,0.01285,115070.0,115060.0,1.54171585]
[1757961402077,0.03476924,115070.0,115060.0,1.54171585]
[1757961402276,0.01285,115070.0,115060.0,1.54171585]
[1757961404185,0.05650237,115070.0,115060.0,1.54199585]
[1757961405378,0.05650237,115070.0,115060.0,1.54195585]
[1757961405578,0.05650237,115070.0,115060.0,1.54191585]
[1757961407586,0.05650237,115070.0,115060.0,0.74863585]
[1757961407978,0.05650237,115070.0,115060.0,1.54183585]
[1757961408281,0.49944921,115070.0,115060.0,0.38783585]
[1757961408492,1.08780133,115070.0,115060.0,0.003]
[1757961408788,1.88132133,115070.0,115060.0,0.003]
[1757961411987,1.95119863,115070.0,115060.0,0.003]
[1757961413091,1.96698922,115070.0,115060.0,0.003]
[1757961416287,1.95126146,115070.0,115060.0,0.003]
[1757961419893,1.92932909,115070.0,115060.0,0.003]
[1757961420100,1.95127362,115070.0,115060.0,0.003]
[1757961428397,1.70127362,115070.0,115060.0,0.003]
[1757961428602,0.03625,115060.0,115050.0,0.0001]
[1757961428902,0.03625,115050.0,115040.0,0.01602]
[1757961429101,1.22511038,115050.0,115040.0,0.01592]
[1757961429303,1.22511038,115050.0,115040.0,0.38963585]
[1757961429901,0.01331,115040.0,115030.0,0.38075962]
[1757961430198,0.01331,115040.0,115030.0,0.76914853]
[1757961430199,0.05819453,115040.0,115030.0,0.76914853]
[1757961431806,0.06708871,115040.0,115030.0,0.76914853]
[1757961435813,0.06708871,115040.0,115030.0,1.01914853]
[1757961436312,0.04514418,115040.0,115030.0,1.01914853]
[1757961436713,0.04514418,115040.0,115030.0,0.97914853]
[1757961437608,0.03087071,115040.0,115030.0,0.97914853]
[1757961437807,0.05381071,115040.0,115030.0,0.97914853]
[1757961438214,0.03087071,115040.0,115030.0,0.97914853]
[1757961438410,0.02195883,115040.0,115030.0,0.97914853]
[1757961440013,0.02197018,115040.0,115030.0,0.97914853]
[1757961444415,0.02197018,115040.0,115030.0,1.77206853]
[1757961448116,0.02197018,115040.0,115030.0,0.97914853]
[1757961448620,0.02197018,115040.0,115030.0,1.77206853]
[1757961452326,0.02197018,115040.0,115030.0,2.03206853]
[1757961452518,0.02197018,115040.0,115030.0,1.77206853]
[1757961459430,0.02197018,115040.0,115030.0,1.52206853]
[1757961463337,0.02197018,115040.0,115030.0,1.64206853]
[1757961463531,0.02197018,115040.0,115030.0,1.62220891]
[1757961464339,0.02297018,115040.0,115030.0,1.58185782]
[1757961464530,0.02297018,115040.0,115030.0,2.37493782]
[1757961464731,0.02297018,115040.0,115030.0,2.04236891]
[1757961465028,0.02397018,115040.0,115030.0,2.04236891]
[1757961465836,0.02397018,115040.0,115030.0,1.24928891]
[1757961466040,0.02297018,115040.0,115030.0,2.04228891]
[1757961466636,0.02297018,115040.0,115030.0,1.24928891]
[1757961466831,0.02297018,115040.0,115030.0,2.04220891]
[1757961467530,0.02297018,115040.0,115030.0,1.24928891]
[1757961467737,0.02197018,115040.0,115030.0,2.04220891]